[Event "Marienbad Open-B2 2019"]
[Site "Marianske Lazne"]
[Date "2019.01.23"]
[Round "6"]
[White "Stigar, Petter"]
[Black "Kacharava, Nikolozi"]
[Result "1/2-1/2"]
[ECO "E62"]
[WhiteElo "2177"]
[BlackElo "2397"]
[Annotator "NA"]
[PlyCount "31"]
[EventDate "2019.01.17"]
[EventType "tourn"]
[EventCountry "CZE"]
[SourceTitle "playchess.com"]
[Source "ChessBase"]
[SourceQuality "1"]
[TimeControl "40/5400+30:1800+30"]

1. d4 {[%emt 0:00:00]} d6 {[%emt 0:00:00]} 2. Nf3 {[%emt 0:00:00]} Nf6 {[%emt 0:00:16]} 3. c4 {[%emt 0:00:07]} g6 {[%emt 0:00:20]} 4. g3 {[%emt 0:00:10]} Bg7 {[%emt 0:00:25]} 5. Bg2 {[%emt 0:00:27]} O-O {[%emt 0:00:21]} 6. O-O {[%emt 0:00:12]} Nc6 {[%emt 0:00:33]} 7. Nc3 {[%emt 0:05:14]} e5 {[%emt 0:00:30]} 8. dxe5 {[%emt 0:00:23]} dxe5 {[%emt 0:00:39]} 9. Bg5 {[%emt 0:00:28]} Be6 {[%emt 0:00:40]} 10. Nd5 {[%emt 0:00:34]} Bxd5 {[%emt 0:18:36]} 11. Bxf6 {[%emt 0:00:44]} Bxf6 {[%emt 0:01:27]} 12. cxd5 {[%emt 0:07:29]} Ne7 {[%emt 0:07:25]} 13. Ne1 {[%emt 0:10:51]} c6 {[%emt 0:02:58]} 14. dxc6 {[%emt 0:04:20]} Nxc6 {[%emt 0:00:51]} 15. Nd3 {[%emt 0:05:57]} Qb6 {[%emt 0:04:19]} 16. Rc1 {[%emt 0:11:55]} 1/2-1/2

[Event "Marienbad Open-B2 2019"]
[Site "Marianske Lazne"]
[Date "2019.01.23"]
[Round "6"]
[White "Hesse, Henrik"]
[Black "Jurek, Josef"]
[Result "1/2-1/2"]
[ECO "A13"]
[WhiteElo "2166"]
[BlackElo "2273"]
[Annotator "NA"]
[PlyCount "30"]
[EventDate "2019.01.17"]
[EventType "tourn"]
[EventCountry "CZE"]
[SourceTitle "playchess.com"]
[Source "ChessBase"]
[SourceQuality "1"]
[TimeControl "40/5400+30:1800+30"]

1. c4 {[%emt 0:00:00]} Nf6 {[%emt 0:00:00]} 2. g3 {[%emt 0:00:27]} e6 {[%emt 0:00:00]} 3. Bg2 {[%emt 0:00:26]} d5 {[%emt 0:00:15]} 4. Nf3 {[%emt 0:00:23]} dxc4 {[%emt 0:00:22]} 5. Qa4+ {[%emt 0:00:59]} c6 {[%emt 0:00:15]} 6. Qxc4 {[%emt 0:00:16]} b5 {[%emt 0:00:15]} 7. Qc2 {[%emt 0:02:24]} Bb7 {[%emt 0:00:14]} 8. O-O {[%emt 0:07:33]} Nbd7 {[%emt 0:05:44]} 9. a4 {[%emt 0:15:50]} a6 {[%emt 0:03:53]} 10. Nd4 {[%emt 0:07:57]} Rc8 {[%emt 0:05:48]} 11. Nb3 {[%emt 0:14:25]} Qb6 {[%emt 0:09:52]} 12. d4 {[%emt 0:01:11]} c5 {[%emt 0:03:11]} 13. dxc5 {[%emt 0:12:19]} Nxc5 {[%emt 0:04:14]} 14. Bxb7 {[%emt 0:03:05]} Qxb7 {[%emt 0:00:30]} 15. axb5 {[%emt 0:00:26]} axb5 {[%emt 0:05:26]} 1/2-1/2

[Event "Marienbad Open-B2 2019"]
[Site "Marianske Lazne"]
[Date "2019.01.24"]
[Round "7"]
[White "Kacharava, Nikolozi"]
[Black "Frolov, Artur"]
[Result "0-1"]
[ECO "B56"]
[WhiteElo "2397"]
[BlackElo "2430"]
[Annotator "NA"]
[PlyCount "114"]
[EventDate "2019.01.17"]
[EventType "tourn"]
[EventCountry "CZE"]
[SourceTitle "playchess.com"]
[Source "ChessBase"]
[SourceQuality "1"]
[TimeControl "40/5400+30:1800+30"]

1. e4 {[%emt 0:00:00]} c5 {[%emt 0:00:00]} 2. Nf3 {[%emt 0:00:03]} Nc6 {[%emt 0:00:00]} 3. d4 {[%emt 0:00:24]} cxd4 {[%emt 0:00:00]} 4. Nxd4 {[%emt 0:00:27]} Nf6 {[%emt 0:00:00]} 5. Nc3 {[%emt 0:00:35]} d6 {[%emt 0:00:00]} 6. f3 {[%emt 0:01:21]} e5 {[%emt 0:02:48]} 7. Nb3 {[%emt 0:00:26]} Be6 {[%emt 0:00:09]} 8. Be3 {[%emt 0:00:40]} Be7 {[%emt 0:03:53]} 9. Qe2 {[%emt 0:00:39]} O-O {[%emt 0:01:57]} 10. O-O-O {[%emt 0:00:21]} Na5 {[%emt 0:04:44]} 11. Qb5 {[%emt 0:00:37]} Nxb3+ {[%emt 0:00:52]} 12. axb3 {[%emt 0:00:23]} Qc7 {[%emt 0:00:33]} 13. g4 {[%emt 0:03:49]} Rfc8 {[%emt 0:02:21]} 14. Rd2 {[%emt 0:06:51]} a6 {[%emt 0:06:18]} 15. Qb6 {[%emt 0:11:53]} Qb8 {[%emt 0:09:34]} 16. Qa5 {[%emt 0:22:34]} b5 {[%emt 0:04:45]} 17. Qb6 {[%emt 0:01:51]} Qxb6 {[%emt 0:02:35]} 18. Bxb6 {[%emt 0:00:02]} b4 {[%emt 0:01:31]} 19. Nd5 {[%emt 0:11:39]} Nxd5 {[%emt 0:00:34]} 20. exd5 {[%emt 0:00:05]} Bd7 {[%emt 0:00:03]} 21. Be3 {[%emt 0:05:09]} a5 {[%emt 0:00:17]} 22. Bc4 {[%emt 0:05:40]} a4 {[%emt 0:00:19]} 23. Rdd1 {[%emt 0:01:03]} e4 {[%emt 0:09:59]} 24. fxe4 {[%emt 0:02:44]} Bxg4 {[%emt 0:00:11]} 25. Rdf1 {[%emt 0:07:31]} Bh3 {[%emt 0:01:56]} 26. Rd1 {[%emt 0:02:00]} Bg2 {[%emt 0:01:26]} 27. Rhg1 {[%emt 0:00:33]} Bxe4 {[%emt 0:01:15]} 28. Bd4 {[%emt 0:00:57]} Bf8 {[%emt 0:00:43]} 29. Be3 {[%emt 0:05:55]} axb3 {[%emt 0:00:23]} 30. cxb3 {[%emt 0:01:43]} g6 {[%emt 0:01:11]} 31. Kd2 {[%emt 0:01:28]} Bg7 {[%emt 0:04:35]} 32. Bf4 {[%emt 0:00:29]} Bxb2 {[%emt 0:01:12]} 33. Bxd6 {[%emt 0:01:04]} Bd4 {[%emt 0:00:07]} 34. Rg4 {[%emt 0:01:55]} Ra2+ {[%emt 0:00:28]} 35. Ke1 {[%emt 0:00:01]} Bc3+ {[%emt 0:00:57]} 36. Kf1 {[%emt 0:00:02]} Bf3 {[%emt 0:00:05]} 37. Rgd4 {[%emt 0:01:12]} Re8 {[%emt 0:11:24]} 38. Bg3 {[%emt 0:02:57]} Bxd4 {[%emt 0:00:36]} 39. Rxd4 {[%emt 0:00:01]} Be2+ {[%emt 0:01:51]} 40. Bxe2 {[%emt 0:01:28]} Rexe2 {[%emt 0:00:05]} 41. Rxb4 {[%emt 0:01:37]} Red2 {[%emt 0:00:19]} 42. Rb8+ {[%emt 0:01:00]} Kg7 {[%emt 0:00:24]} 43. Be5+ {[%emt 0:00:13]} f6 {[%emt 0:02:13]} 44. Rb7+ {[%emt 0:00:05]} Kh6 {[%emt 0:01:47]} 45. Bf4+ {[%emt 0:00:06]} g5 {[%emt 0:00:03]} 46. Bxd2 {[%emt 0:00:08]} Rxd2 {[%emt 0:00:06]} 47. Rd7 {[%emt 0:20:40]} Rxh2 {[%emt 0:02:10]} 48. b4 {[%emt 0:00:21]} Kg6 {[%emt 0:02:52]} 49. d6 {[%emt 0:03:53]} Rb2 {[%emt 0:02:55]} 50. Rb7 {[%emt 0:03:46]} Rd2 {[%emt 0:01:10]} 51. Rd7 {[%emt 0:01:26]} Rd5 {[%emt 0:03:19]} 52. Rd8 {[%emt 0:01:59]} Kf5 {[%emt 0:00:38]} 53. Rd7 {[%emt 0:01:40]} h5 {[%emt 0:00:32]} 54. Rd8 {[%emt 0:00:47]} Ke6 {[%emt 0:00:29]} 55. b5 {[%emt 0:00:43]} Rxb5 {[%emt 0:00:28]} 56. d7 {[%emt 0:00:18]} h4 {[%emt 0:00:23]} 57. Rf8 {[%emt 0:00:15]} Rf5+ {[%emt 0:00:08]} 0-1

[Event "Marienbad Open-B2 2019"]
[Site "Marianske Lazne"]
[Date "2019.01.24"]
[Round "7"]
[White "Jurek, Josef"]
[Black "Plischki, Sebastian"]
[Result "1/2-1/2"]
[ECO "E54"]
[WhiteElo "2273"]
[BlackElo "2426"]
[Annotator "ChessBase"]
[PlyCount "132"]
[EventDate "2019.01.17"]
[EventType "tourn"]
[EventCountry "CZE"]
[SourceTitle "playchess.com"]
[Source "ChessBase"]
[SourceQuality "1"]
[TimeControl "40/5400+30:1800+30"]

1. Nf3 {[%emt 0:00:00]} Nf6 {[%emt 0:00:00]} 2. c4 {[%emt 0:00:00]} e6 {[%emt 0:00:00]} 3. d4 {[%emt 0:00:46]} c5 {[%emt 0:00:19]} 4. e3 {[%emt 0:01:58]} cxd4 {[%emt 0:00:43]} 5. exd4 {[%emt 0:00:17]} d5 {[%emt 0:00:19]} 6. Nc3 {[%emt 0:00:29]} Bb4 {[%emt 0:00:32]} 7. Bd3 {[%emt 0:01:12]} O-O {[%emt 0:00:30]} 8. O-O {[%emt 0:00:19]} dxc4 {[%emt 0:00:18]} 9. Bxc4 {[%emt 0:00:13]} b6 {[%emt 0:02:07]} 10. Bg5 {[%emt 0:01:51]} Bxc3 {[%emt 0:01:26]} 11. bxc3 {[%emt 0:00:20]} Nbd7 {[%emt 0:00:13]} 12. Rc1 {[%emt 0:05:29]} Bb7 {[%emt 0:00:23]} 13. Qe2 {[%emt 0:01:34]} Qc7 {[%emt 0:00:28]} 14. Bd3 {[%emt 0:01:09]} Ng4 {[%emt 0:05:30]} 15. Be4 {[%emt 0:02:23]} Bxe4 {[%emt 0:00:29]} 16. Qxe4 {[%emt 0:00:17]} Ngf6 {[%emt 0:00:15]} 17. Qe2 {[%emt 0:03:16]} Rac8 {[%emt 0:01:26]} 18. c4 {[%emt 0:02:15]} Qb7 {[%emt 0:01:08]} 19. Rfe1 {[%emt 0:04:23]} Rc6 {[%emt 0:11:04]} 20. Bxf6 {[%emt 0:06:23]} Nxf6 {[%emt 0:00:11]} 21. c5 {[%emt 0:07:13]} Rc7 {[%emt 0:02:56]} 22. Ne5 {[%emt 0:07:49]} Qd5 {[%emt 0:01:54]} 23. cxb6 {[%emt 0:03:35]} Rxc1 {[%emt 0:00:10]} 24. Rxc1 {[%emt 0:00:12]} axb6 {[%emt 0:00:07]} 25. Qb2 {[%emt 0:03:19]} Qb7 {[%emt 0:02:43]} 26. a4 {[%emt 0:05:44]} Nd5 {[%emt 0:01:55]} 27. a5 {[%emt 0:03:40]} f6 {[%emt 0:15:40]} 28. Nd3 {[%emt 0:13:44]} Rb8 {[%emt 0:05:50]} 29. Qe2 {[%emt 0:05:04]} Qd7 {[%emt 0:03:54]} 30. axb6 {[%emt 0:01:30]} Rxb6 {[%emt 0:00:35]} 31. g3 {[%emt 0:04:22]} Ne7 {[%emt 0:03:33]} 32. Qe4 {[%emt 0:02:48]} Qd5 {[%emt 0:02:27]} 33. Qg4 {[%emt 0:02:35]} Qf5 {[%emt 0:06:05]} 34. Qxf5 {[%emt 0:01:53]} Nxf5 {[%emt 0:01:31]} 35. Rc8+ {[%emt 0:01:07]} Kf7 {[%emt 0:00:05]} 36. Rc7+ {[%emt 0:00:36]} Ne7 {[%emt 0:01:20]} 37. Kg2 {[%emt 0:03:35]} Rd6 {[%emt 0:10:03]} 38. Nb4 {[%emt 0:00:32]} f5 {[%emt 0:00:39]} 39. h4 {[%emt 0:01:54]} Kf6 {[%emt 0:00:23]} 40. Nc2 {[%emt 0:02:23]} Nc6 {[%emt 0:01:33]} 41. Kf3 {[%emt 0:02:26]} Nxd4+ {[%emt 0:00:19]} 42. Nxd4 {[%emt 0:00:08]} Rxd4 {[%emt 0:00:05]} 43. Ra7 {[%emt 0:00:54]} h5 {[%emt 0:01:20]} 44. Rb7 {[%emt 0:00:32]} Rg4 {[%emt 0:00:21]} 45. Rb5 {[%emt 0:00:24]} g6 {[%emt 0:00:18]} 46. Ra5 {[%emt 0:00:17]} f4 {[%emt 0:01:16]} 47. Ra8 {[%emt 0:02:25]} fxg3 {[%emt 0:00:12]} 48. fxg3 {[%emt 0:00:07]} Rb4 {[%emt 0:00:29]} 49. Rf8+ {[%emt 0:00:51]} Ke5 {[%emt 0:00:14]} 50. Rg8 {[%emt 0:00:10]} Rb3+ {[%emt 0:00:34]} 51. Kg2 {[%emt 0:00:32]} Kf6 {[%emt 0:03:06]} 52. Rf8+ {[%emt 0:00:08]} Ke7 {[%emt 0:00:08]} 53. Rg8 {[%emt 0:00:06]} Kf7 {[%emt 0:00:06]} 54. Ra8 {[%emt 0:00:15]} Rd3 {[%emt 0:07:05]} 55. Rb8 {[%emt 0:00:42]} e5 {[%emt 0:09:12]} 56. Rb6 {[%emt 0:00:21]} Rd4 {[%emt 0:00:07]} 57. Kf2 {[%emt 0:08:58]} Rg4 {[%emt 0:03:43]} 58. Ra6 {[%emt 0:01:03]} Rb4 {[%emt 0:04:42]} 59. Kg2 {[%emt 0:03:12]} Rb7 {[%emt 0:00:14]} 60. Kf3 {[%emt 0:00:37]} Re7 {[%emt 0:00:11]} 61. Ke4 {[%emt 0:00:47]} Re6 {[%emt 0:00:05]} 62. Ra8 {[%emt 0:00:52]} Kf6 {[%emt 0:01:39]} 63. Rf8+ {[%emt 0:00:13]} Kg7 {[%emt 0:01:08]} 64. Ra8 {[%emt 0:00:28]} Rf6 {[%emt 0:00:43]} 65. Re8 {[%emt 0:02:11]} Rf1 {[%emt 0:00:27]} 66. Rxe5 {[%emt 0:00:36]} Re1+ 1/2-1/2

[Event "Marienbad Open-B2 2019"]
[Site "Marianske Lazne"]
[Date "2019.01.24"]
[Round "7"]
[White "German, Nikita"]
[Black "Lukasiewicz, Krzysztof"]
[Result "1/2-1/2"]
[ECO "B19"]
[WhiteElo "2162"]
[BlackElo "2223"]
[Annotator "NA"]
[PlyCount "64"]
[EventDate "2019.01.17"]
[EventType "tourn"]
[EventCountry "CZE"]
[SourceTitle "playchess.com"]
[Source "ChessBase"]
[SourceQuality "1"]
[TimeControl "40/5400+30:1800+30"]

1. e4 {[%emt 0:03:07]} c6 {[%emt 0:00:00]} 2. d4 {[%emt 0:00:16]} d5 {[%emt 0:00:00]} 3. Nc3 {[%emt 0:00:12]} dxe4 {[%emt 0:00:00]} 4. Nxe4 {[%emt 0:00:05]} Bf5 {[%emt 0:00:00]} 5. Ng3 {[%emt 0:00:09]} Bg6 {[%emt 0:00:00]} 6. h4 {[%emt 0:00:12]} h6 {[%emt 0:00:00]} 7. Nf3 {[%emt 0:00:10]} Nd7 {[%emt 0:00:00]} 8. h5 {[%emt 0:00:12]} Bh7 {[%emt 0:00:00]} 9. Bd3 {[%emt 0:00:10]} Bxd3 {[%emt 0:00:00]} 10. Qxd3 {[%emt 0:00:12]} e6 {[%emt 0:00:00]} 11. Bd2 {[%emt 0:00:19]} Ngf6 {[%emt 0:00:03]} 12. O-O-O {[%emt 0:00:36]} Be7 {[%emt 0:00:03]} 13. Kb1 {[%emt 0:01:10]} O-O {[%emt 0:00:38]} 14. Ne4 {[%emt 0:01:41]} c5 {[%emt 0:00:55]} 15. dxc5 {[%emt 0:05:05]} Qc7 {[%emt 0:15:38]} 16. Nxf6+ {[%emt 0:19:14]} Nxf6 {[%emt 0:00:09]} 17. Bc3 {[%emt 0:02:35]} Qxc5 {[%emt 0:04:25]} 18. Bd4 {[%emt 0:03:26]} Qc7 {[%emt 0:02:11]} 19. Ne5 {[%emt 0:03:37]} Rfd8 {[%emt 0:07:02]} 20. Qe2 {[%emt 0:06:41]} Bc5 {[%emt 0:08:20]} 21. Bxc5 {[%emt 0:07:28]} Qxc5 {[%emt 0:00:50]} 22. g4 {[%emt 0:01:42]} Rd5 {[%emt 0:10:22]} 23. Rxd5 {[%emt 0:01:44]} Nxd5 {[%emt 0:01:47]} 24. Qf3 {[%emt 0:13:38]} Qc7 {[%emt 0:03:33]} 25. Qe4 {[%emt 0:02:17]} Nf6 {[%emt 0:05:06]} 26. Qe2 {[%emt 0:03:20]} Rd8 {[%emt 0:06:43]} 27. Nd3 {[%emt 0:05:32]} Qc6 {[%emt 0:08:23]} 28. Rg1 {[%emt 0:01:31]} Qe4 {[%emt 0:00:22]} 29. Qxe4 {[%emt 0:02:36]} Nxe4 {[%emt 0:00:21]} 30. Kc1 {[%emt 0:00:28]} Kf8 {[%emt 0:01:20]} 31. f3 {[%emt 0:00:44]} Nf6 {[%emt 0:00:16]} 32. Kd2 {[%emt 0:01:18]} Ke7 {[%emt 0:00:22]} 1/2-1/2

[Event "Marienbad Open-B2 2019"]
[Site "Marianske Lazne"]
[Date "2019.01.24"]
[Round "7"]
[White "Ng, Jen Sheng"]
[Black "Hesse, Henrik"]
[Result "1-0"]
[ECO "B06"]
[WhiteElo "2075"]
[BlackElo "2166"]
[Annotator "ChessBase"]
[PlyCount "121"]
[EventDate "2019.01.17"]
[EventType "tourn"]
[EventCountry "CZE"]
[SourceTitle "playchess.com"]
[Source "ChessBase"]
[SourceQuality "1"]
[TimeControl "40/5400+30:1800+30"]

1. e4 {[%emt 0:00:00]} g6 {[%emt 0:01:52]} 2. d4 {[%emt 0:00:00]} Bg7 {[%emt 0:00:10]} 3. Nc3 {[%emt 0:00:00]} d5 {[%emt 0:03:37]} 4. exd5 {[%emt 0:00:52]} Nf6 {[%emt 0:00:09]} 5. Bc4 {[%emt 0:00:04]} Nbd7 {[%emt 0:01:49]} 6. Qf3 {[%emt 0:02:05]} Nb6 {[%emt 0:02:10]} 7. Bb3 {[%emt 0:00:03]} Bg4 {[%emt 0:15:32]} 8. Qg3 {[%emt 0:01:10]} Bf5 {[%emt 0:01:12]} 9. Qf3 {[%emt 0:05:51]} O-O {[%emt 0:05:35]} 10. h3 {[%emt 0:00:37]} Qd6 {[%emt 0:06:19]} 11. Nge2 {[%emt 0:02:58]} h5 {[%emt 0:12:28]} 12. Bf4 {[%emt 0:02:41]} Qd7 {[%emt 0:01:45]} 13. Be5 {[%emt 0:00:33]} Rad8 {[%emt 0:13:08]} 14. Bxf6 {[%emt 0:00:40]} Bxf6 {[%emt 0:01:19]} 15. O-O-O {[%emt 0:01:12]} h4 {[%emt 0:12:01]} 16. Kb1 {[%emt 0:14:32]} a5 {[%emt 0:02:19]} 17. a4 {[%emt 0:03:33]} Kg7 {[%emt 0:10:07]} 18. Nf4 {[%emt 0:01:20]} Rh8 {[%emt 0:01:32]} 19. Rhe1 {[%emt 0:05:21]} Qd6 {[%emt 0:02:01]} 20. g4 {[%emt 0:09:20]} hxg3 {[%emt 0:01:50]} 21. fxg3 {[%emt 0:00:20]} Bxh3 {[%emt 0:02:09]} 22. Ne4 {[%emt 0:09:01]} Qd7 {[%emt 0:00:00]} 23. Nf2 {[%emt 0:00:05]} g5 {[%emt 0:01:29]} 24. Nh5+ {[%emt 0:02:36]} Kg6 {[%emt 0:00:29]} 25. Nxf6 {[%emt 0:00:13]} exf6 {[%emt 0:00:01]} 26. g4 {[%emt 0:00:17]} f5 {[%emt 0:00:57]} 27. Nxh3 {[%emt 0:01:11]} fxg4 {[%emt 0:00:00]} 28. Qd3+ {[%emt 0:00:24]} Qf5 {[%emt 0:00:16]} 29. Nf2 {[%emt 0:01:52]} Qxd3 {[%emt 0:01:01]} 30. Nxd3 {[%emt 0:00:01]} f6 {[%emt 0:00:31]} 31. c4 {[%emt 0:00:23]} g3 {[%emt 0:00:42]} 32. Bc2 {[%emt 0:01:01]} Kf7 {[%emt 0:00:20]} 33. b3 {[%emt 0:00:55]} Rh2 {[%emt 0:00:36]} 34. Re3 {[%emt 0:15:36]} g2 {[%emt 0:00:19]} 35. Rg1 {[%emt 0:00:25]} Rh1 {[%emt 0:00:40]} 36. Ree1 {[%emt 0:00:10]} Rdh8 {[%emt 0:00:58]} 37. Rxg2 {[%emt 0:01:43]} Rxe1+ {[%emt 0:00:16]} 38. Nxe1 {[%emt 0:00:01]} Rh4 {[%emt 0:00:08]} 39. Nd3 {[%emt 0:03:41]} Nc8 {[%emt 0:00:23]} 40. Nc5 {[%emt 0:06:07]} Nd6 {[%emt 0:00:01]} 41. Rf2 {[%emt 0:30:48]} g4 {[%emt 0:02:34]} 42. Ne4 {[%emt 0:00:00]} Nxe4 {[%emt 0:06:08]} 43. Bxe4 {[%emt 0:00:00]} g3 {[%emt 0:00:27]} 44. Re2 {[%emt 0:00:00]} Rf4 {[%emt 0:04:16]} 45. Re3 {[%emt 0:00:00]} Rf1+ {[%emt 0:03:07]} 46. Kc2 {[%emt 0:00:00]} g2 {[%emt 0:02:25]} 47. Bxg2 {[%emt 0:00:00]} Rf2+ {[%emt 0:00:06]} 48. Kd3 {[%emt 0:00:00]} Rxg2 {[%emt 0:00:11]} 49. c5 {[%emt 0:00:00]} f5 {[%emt 0:05:49]} 50. d6 {[%emt 0:00:00]} cxd6 {[%emt 0:05:15]} 51. cxd6 {[%emt 0:00:00]} f4 {[%emt 0:00:55]} 52. d7 {[%emt 0:00:00]} fxe3 {[%emt 0:05:56]} 53. d8=Q {[%emt 0:00:00]} e2 {[%emt 0:00:05]} 54. Kd2 {[%emt 0:00:00]} Ke6 {[%emt 0:00:47]} 55. Qc8+ {[%emt 0:00:09]} Kd6 {[%emt 0:00:34]} 56. Qxb7 {[%emt 0:00:16]} Rf2 {[%emt 0:00:31]} 57. Qb6+ {[%emt 0:00:19]} Kd5 {[%emt 0:00:10]} 58. Qxa5+ {[%emt 0:00:07]} Ke4 {[%emt 0:00:23]} 59. Qe5+ {[%emt 0:00:33]} Kf3 {[%emt 0:00:05]} 60. Qe3+ {[%emt 0:00:11]} Kg2 {[%emt 0:01:16]} 61. Qxe2 1-0

[Event "Marienbad Open-B2 2019"]
[Site "Marianske Lazne"]
[Date "2019.01.25"]
[Round "8"]
[White "Stigar, Petter"]
[Black "German, Nikita"]
[Result "1/2-1/2"]
[ECO "C07"]
[WhiteElo "2177"]
[BlackElo "2162"]
[Annotator "NA"]
[PlyCount "53"]
[EventDate "2019.01.17"]
[EventType "tourn"]
[EventCountry "CZE"]
[SourceTitle "playchess.com"]
[Source "ChessBase"]
[SourceQuality "1"]
[TimeControl "40/5400+30:1800+30"]

1. e4 {[%emt 0:00:00]} e6 {[%emt 0:04:08]} 2. d4 {[%emt 0:01:20]} d5 {[%emt 0:00:40]} 3. Nd2 {[%emt 0:00:21]} c5 {[%emt 0:00:40]} 4. exd5 {[%emt 0:00:21]} Qxd5 {[%emt 0:00:24]} 5. Ngf3 {[%emt 0:00:40]} cxd4 {[%emt 0:00:57]} 6. Bc4 {[%emt 0:00:34]} Qd6 {[%emt 0:02:38]} 7. O-O {[%emt 0:01:11]} Nf6 {[%emt 0:00:22]} 8. Nb3 {[%emt 0:00:13]} Nc6 {[%emt 0:00:36]} 9. Nbxd4 {[%emt 0:00:15]} Nxd4 {[%emt 0:00:21]} 10. Qxd4 {[%emt 0:00:29]} Qxd4 {[%emt 0:00:40]} 11. Nxd4 {[%emt 0:00:04]} Bd7 {[%emt 0:00:45]} 12. Be2 {[%emt 0:07:48]} Rc8 {[%emt 0:18:17]} 13. c3 {[%emt 0:00:53]} Bd6 {[%emt 0:13:41]} 14. Be3 {[%emt 0:23:49]} Nd5 {[%emt 0:27:33]} 15. Nb5 {[%emt 0:01:58]} Bb8 {[%emt 0:00:49]} 16. Bd2 {[%emt 0:07:36]} Ke7 {[%emt 0:06:52]} 17. Rad1 {[%emt 0:06:58]} Nf4 {[%emt 0:05:44]} 18. Bxf4 {[%emt 0:00:50]} Bxf4 {[%emt 0:00:08]} 19. Nd4 {[%emt 0:00:54]} Rhd8 {[%emt 0:00:35]} 20. Rfe1 {[%emt 0:02:13]} Kf8 {[%emt 0:01:46]} 21. g3 {[%emt 0:00:46]} Bb8 {[%emt 0:04:18]} 22. Bf3 {[%emt 0:02:40]} b6 {[%emt 0:03:05]} 23. Nc6 {[%emt 0:19:31]} Bxc6 {[%emt 0:00:18]} 24. Bxc6 {[%emt 0:01:34]} Ke7 {[%emt 0:00:27]} 25. Bb7 {[%emt 0:01:56]} Rxd1 {[%emt 0:00:53]} 26. Rxd1 {[%emt 0:01:54]} Rd8 {[%emt 0:00:17]} 27. Rxd8 {[%emt 0:00:11]} 1/2-1/2

[Event "Marienbad Open-B2 2019"]
[Site "Marianske Lazne"]
[Date "2019.01.25"]
[Round "8"]
[White "Ng, Jen Sheng"]
[Black "Kacharava, Nikolozi"]
[Result "0-1"]
[ECO "B09"]
[WhiteElo "2075"]
[BlackElo "2397"]
[Annotator "NA"]
[PlyCount "66"]
[EventDate "2019.01.17"]
[EventType "tourn"]
[EventCountry "CZE"]
[SourceTitle "playchess.com"]
[Source "ChessBase"]
[SourceQuality "1"]
[TimeControl "40/5400+30:1800+30"]

1. e4 {[%emt 0:00:00]} d6 {[%emt 0:00:00]} 2. d4 {[%emt 0:00:00]} Nf6 {[%emt 0:00:08]} 3. Nc3 {[%emt 0:00:00]} g6 {[%emt 0:00:25]} 4. f4 {[%emt 0:00:00]} Bg7 {[%emt 0:00:19]} 5. Nf3 {[%emt 0:00:00]} O-O {[%emt 0:00:21]} 6. Be3 {[%emt 0:00:00]} b6 {[%emt 0:00:37]} 7. Qd2 {[%emt 0:06:37]} Bb7 {[%emt 0:00:43]} 8. Bd3 {[%emt 0:06:47]} Ng4 {[%emt 0:16:40]} 9. Bg1 {[%emt 0:05:25]} c5 {[%emt 0:03:04]} 10. h3 {[%emt 0:11:40]} Nf6 {[%emt 0:07:06]} 11. d5 {[%emt 0:05:17]} e6 {[%emt 0:04:47]} 12. dxe6 {[%emt 0:03:54]} fxe6 {[%emt 0:00:11]} 13. Ng5 {[%emt 0:00:22]} Qe7 {[%emt 0:03:06]} 14. O-O-O {[%emt 0:00:22]} h6 {[%emt 0:10:44]} 15. Nf3 {[%emt 0:00:17]} d5 {[%emt 0:02:31]} 16. e5 {[%emt 0:13:28]} Ne4 {[%emt 0:01:29]} 17. Qe1 {[%emt 0:02:34]} Nxc3 {[%emt 0:12:34]} 18. Qxc3 {[%emt 0:01:11]} Rxf4 {[%emt 0:00:21]} 19. Bh2 {[%emt 0:00:29]} Rf8 {[%emt 0:03:21]} 20. Qd2 {[%emt 0:00:09]} Qe8 {[%emt 0:04:58]} 21. c3 {[%emt 0:00:19]} Nc6 {[%emt 0:00:39]} 22. h4 {[%emt 0:02:44]} d4 {[%emt 0:07:29]} 23. c4 {[%emt 0:02:27]} Ne7 {[%emt 0:07:14]} 24. Bf4 {[%emt 0:00:19]} Nf5 {[%emt 0:03:48]} 25. Rdf1 {[%emt 0:00:14]} Rd8 {[%emt 0:03:08]} 26. Rhg1 {[%emt 0:09:40]} Qe7 {[%emt 0:01:51]} 27. Rh1 {[%emt 0:05:04]} b5 {[%emt 0:01:33]} 28. h5 {[%emt 0:00:10]} g5 {[%emt 0:01:27]} 29. Nxg5 {[%emt 0:00:05]} Ne3 {[%emt 0:00:27]} 30. Rf2 {[%emt 0:09:14]} Rxf4 {[%emt 0:00:43]} 31. Rxf4 {[%emt 0:00:15]} Qxg5 {[%emt 0:00:01]} 32. Rf2 {[%emt 0:02:19]} bxc4 {[%emt 0:00:40]} 33. Bg6 {[%emt 0:00:01]} c3 0-1

[Event "Marienbad Open-B2 2019"]
[Site "Marianske Lazne"]
[Date "2019.01.26"]
[Round "9"]
[White "Plischki, Sebastian"]
[Black "Lukasiewicz, Krzysztof"]
[Result "1-0"]
[ECO "A40"]
[WhiteElo "2426"]
[BlackElo "2223"]
[Annotator "RC"]
[PlyCount "63"]
[EventDate "2019.01.17"]
[EventType "tourn"]
[EventCountry "CZE"]
[SourceTitle "playchess.com"]
[Source "ChessBase"]
[SourceQuality "1"]
[TimeControl "40/5400+30:1800+30"]

1. d4 {[%emt 0:00:00]} Nf6 {[%emt 0:04:08]} 2. c4 {[%emt 0:00:00]} e6 {[%emt 0:00:03]} 3. Nc3 {[%emt 0:00:00]} d5 {[%emt 0:00:41]} 4. cxd5 {[%emt 0:00:00]} exd5 {[%emt 0:00:04]} 5. Bg5 {[%emt 0:00:14]} Be7 {[%emt 0:00:08]} 6. e3 {[%emt 0:00:10]} c6 {[%emt 0:00:08]} 7. Bd3 {[%emt 0:00:15]} Nbd7 {[%emt 0:00:25]} 8. h3 {[%emt 0:00:34]} Ne4 {[%emt 0:12:52]} 9. Bxe7 {[%emt 0:01:31]} Qxe7 {[%emt 0:00:45]} 10. Bxe4 {[%emt 0:00:13]} dxe4 {[%emt 0:00:02]} 11. Qg4 {[%emt 0:00:19]} Nf6 {[%emt 0:03:11]} 12. Qxg7 {[%emt 0:00:10]} Rg8 {[%emt 0:00:05]} 13. Qh6 {[%emt 0:00:06]} Rxg2 {[%emt 0:03:31]} 14. Nge2 {[%emt 0:00:23]} Rg8 {[%emt 0:05:47]} 15. O-O-O {[%emt 0:02:15]} Be6 {[%emt 0:02:26]} 16. Nf4 {[%emt 0:05:30]} O-O-O {[%emt 0:02:30]} 17. Rhg1 {[%emt 0:02:45]} Bf5 {[%emt 0:10:46]} 18. Rg5 {[%emt 0:09:02]} Bg6 {[%emt 0:05:44]} 19. Re5 {[%emt 0:04:13]} Qd6 {[%emt 0:04:12]} 20. Nxg6 {[%emt 0:02:32]} hxg6 {[%emt 0:05:04]} 21. Qf4 {[%emt 0:00:20]} Rh8 {[%emt 0:00:40]} 22. Nxe4 {[%emt 0:02:08]} Nxe4 {[%emt 0:00:05]} 23. Rxe4 {[%emt 0:00:22]} Qd5 {[%emt 0:02:28]} 24. Re7 {[%emt 0:03:29]} Rd7 {[%emt 0:00:17]} 25. Rxd7 {[%emt 0:00:23]} Kxd7 {[%emt 0:01:39]} 26. Qg4+ {[%emt 0:00:59]} Kc7 {[%emt 0:12:42]} 27. Kb1 {[%emt 0:01:20]} Rh5 {[%emt 0:00:56]} 28. e4 {[%emt 0:01:28]} Qc4 {[%emt 0:02:33]} 29. d5 {[%emt 0:02:30]} Kb6 {[%emt 0:01:13]} 30. Qf3 {[%emt 0:03:25]} cxd5 {[%emt 0:04:04]} 31. exd5 {[%emt 0:00:24]} Re5 {[%emt 0:00:08]} 32. Qf6+ {[%emt 0:00:09]} 1-0